bitfinex-derivatives/quotes_BTCF0:USTF0_20240814
["timestamp","ask_amount","ask_price","bid_price","bid_amount"]
[1723671601115,0.373928,59003.0,59002.0,0.11984173]
[1723671601314,0.373928,59003.0,59002.0,0.06759252]
[1723671601822,0.084731,59001.0,59000.0,0.06759252]
[1723671602019,0.084733,59000.0,58997.0,0.3608]
[1723671602216,0.084734,58999.0,58998.0,0.06759563]
[1723671602515,0.084734,58999.0,58997.0,0.42839563]
[1723671602516,0.084735,58998.0,58997.0,0.42839563]
[1723671602717,0.204735,58998.0,58997.0,0.57839563]
[1723671603125,0.204735,58998.0,58997.0,0.5108]
[1723671603423,0.204735,58998.0,58997.0,0.5138]
[1723671604322,0.204735,58998.0,58997.0,0.5108]
[1723671606624,0.204735,58998.0,58997.0,0.5614397]
[1723671609827,0.28947,58998.0,58997.0,0.5614397]
[1723671610723,0.28947,58998.0,58997.0,0.5108]
[1723671611420,0.28947,58998.0,58997.0,0.5614397]
[1723671615131,0.28947,58998.0,58997.0,0.5108]
[1723671618043,0.28947,58998.0,58997.0,0.6279]
[1723671618427,0.28947,58998.0,58997.0,0.69549563]
[1723671621328,0.28947,58998.0,58997.0,0.6279]
[1723671623824,0.40657,58998.0,58997.0,0.15]
[1723671624032,0.40657,58998.0,58992.0,0.23736]
[1723671624033,0.169474,58997.0,58996.0,0.06766124]
[1723671624225,0.084741,58994.0,58992.0,0.06766124]
[1723671624426,0.254238,58991.0,58990.0,0.06766124]
[1723671624631,0.084748,58989.0,58988.0,0.06766124]
[1723671624833,0.331848,58989.0,58988.0,0.06766124]
[1723671625240,0.1695,58988.0,58987.0,0.06766124]
[1723671625427,0.084753,58986.0,58985.0,0.11735422]
[1723671625633,0.214753,58986.0,58985.0,0.26735422]
[1723671627238,0.214753,58986.0,58985.0,0.27135422]
[1723671628542,0.214753,58986.0,58985.0,0.28435422]
[1723671628731,0.214753,58986.0,58985.0,0.28235422]
[1723671629334,0.214753,58986.0,58985.0,0.27135422]
[1723671630737,0.214753,58986.0,58985.0,0.12135422]
[1723671630943,0.299506,58986.0,58985.0,0.00425422]
[1723671631139,0.416606,58986.0,58985.0,0.07190031]
[1723671631332,0.416606,58986.0,58985.0,0.07190643]
[1723671631539,0.416606,58986.0,58985.0,0.00425422]
[1723671631842,0.416606,58986.0,58985.0,0.05499422]
[1723671631843,0.51076175,58986.0,58985.0,0.05499422]
[1723671632232,0.87156175,58986.0,58985.0,0.00225422]
[1723671632437,1.38016175,58986.0,58985.0,0.00225422]
[1723671632641,0.87156175,58986.0,58985.0,0.00025422]
[1723671632838,0.92211859,58986.0,58985.0,0.00125422]
[1723671633244,0.92207835,58986.0,58985.0,0.00125422]
[1723671633443,0.87156175,58986.0,58985.0,0.00125422]
[1723671634144,0.92205815,58986.0,58985.0,0.00125422]
[1723671634736,0.92405815,58986.0,58985.0,0.00025422]
[1723671636348,0.87356175,58986.0,58985.0,0.00025422]
[1723671637547,0.25428,58981.0,58980.0,0.00015345]
[1723671637754,0.47138,58981.0,58980.0,0.00015345]
[1723671638439,0.83218,58981.0,58980.0,0.00015345]
[1723671638649,0.47138,58981.0,58980.0,0.00315345]
[1723671638850,0.47138,58981.0,58980.0,0.00615345]
[1723671642652,0.47138,58981.0,58980.0,0.13615345]
[1723671654254,0.5218764,58981.0,58980.0,0.13615345]
[1723671655250,0.3200164,58981.0,58980.0,0.13615345]
[1723671655447,0.38662,58981.0,58980.0,0.13615345]
[1723671655845,0.38662,58981.0,58980.0,0.18691402]
[1723671656256,0.38662,58981.0,58980.0,0.13615345]
[1723671656445,0.38662,58981.0,58980.0,0.18692234]
[1723671656650,0.38662,58981.0,58980.0,0.13615345]
[1723671658255,0.4371164,58981.0,58980.0,0.13615345]
[1723671658448,0.38662,58981.0,58980.0,0.20380566]
[1723671659159,0.4371164,58981.0,58980.0,0.20380566]
[1723671660259,0.38662,58981.0,58980.0,0.13615345]
[1723671660456,0.43725245,58981.0,58980.0,0.20391259]
[1723671661253,0.38662,58981.0,58980.0,0.13615345]
[1723671663265,0.4540359,58981.0,58980.0,0.13615345]
[1723671665069,0.38662,58981.0,58980.0,0.13615345]
[1723671665656,0.4540359,58981.0,58980.0,0.13615345]
[1723671667161,0.4540359,58981.0,58980.0,0.00615345]
[1723671671060,0.38662,58981.0,58980.0,0.00615345]
[1723671676970,1.29526,58981.0,58980.0,0.00615345]
[1723671677273,0.4540359,58981.0,58980.0,0.00615345]
[1723671685469,0.38662,58981.0,58980.0,0.00615345]
[1723671685873,0.45420446,58981.0,58980.0,0.00615345]
[1723671686069,0.38662,58981.0,58980.0,0.00615345]
[1723671689166,0.45420503,58981.0,58980.0,0.00615345]
[1723671692480,0.45420503,58981.0,58980.0,0.0907112]
[1723671692883,0.45420503,58981.0,58980.0,0.21275752]
[1723671694384,0.38662,58981.0,58980.0,0.2127434]
[1723671695580,0.38662,58981.0,58980.0,0.0907112]
[1723671695781,0.38662,58981.0,58980.0,0.21274087]
[1723671696484,0.38662,58981.0,58980.0,0.21273896]
[1723671697083,0.38662,58981.0,58980.0,0.0907112]
[1723671697379,0.38662,58981.0,58980.0,0.06783386]
[1723671697584,0.38662,58981.0,58965.0,0.4371]
[1723671697585,0.169532,58977.0,58976.0,0.08479167]
[1723671697782,0.169534,58976.0,58975.0,0.08479167]
[1723671697985,0.396634,58976.0,58975.0,0.07769094]
[1723671698285,0.084773,58972.0,58971.0,0.3608]
[1723671698584,0.084773,58972.0,58971.0,0.6267203]
[1723671698585,0.31474841,58972.0,58971.0,0.6267203]
[1723671698977,0.39952141,58972.0,58971.0,0.47900666]
[1723671699280,0.39952141,58972.0,58971.0,0.6267172]
[1723671699473,0.45019114,58972.0,58971.0,0.6267172]
[1723671699671,0.39952141,58972.0,58971.0,0.6397172]
[1723671700482,0.39952141,58972.0,58971.0,0.63971822]
[1723671700680,0.31474841,58972.0,58971.0,0.63971822]
[1723671701885,0.31574841,58972.0,58971.0,0.65271822]
[1723671704377,0.32503036,58972.0,58971.0,0.65271822]
[1723671705483,0.32503036,58972.0,58971.0,0.75418884]
[1723671706083,0.32503036,58972.0,58971.0,0.65271822]
[1723671706491,0.32503036,58972.0,58971.0,0.65271477]
[1723671706685,0.32503036,58972.0,58971.0,0.75441857]
[1723671706989,0.32503036,58972.0,58971.0,0.65271477]
[1723671707189,0.32503036,58972.0,58971.0,0.75441939]
[1723671707393,0.32503036,58972.0,58971.0,0.65271477]
[1723671713795,0.32503036,58972.0,58971.0,0.50500666]
[1723671713998,0.32503036,58972.0,58971.0,0.65271356]
[1723671714192,0.32503036,58972.0,58971.0,0.50500666]
[1723671714386,0.32503036,58972.0,58971.0,0.65271356]
[1723671714586,0.32503036,58972.0,58971.0,0.29191356]
[1723671714791,0.32503036,58972.0,58971.0,0.65271356]
[1723671715002,0.32503036,58972.0,58971.0,0.29191356]
[1723671715190,0.32503036,58972.0,58971.0,0.65271356]
[1723671715890,0.32503036,58972.0,58971.0,0.29191356]
[1723671716089,0.32503036,58972.0,58971.0,0.65271356]
[1723671716492,0.32503036,58972.0,58971.0,1.04083875]
[1723671717899,0.32503036,58972.0,58971.0,1.0408438]
[1723671718088,0.32503036,58972.0,58971.0,0.91648095]
[1723671718488,0.32503036,58972.0,58971.0,1.04063724]
[1723671719789,0.20793036,58972.0,58971.0,1.04063724]
[1723671720397,0.20793036,58972.0,58971.0,0.79827429]
[1723671720697,0.20793036,58972.0,58971.0,1.03997974]
[1723671720895,0.20793036,58972.0,58971.0,0.77621417]
[1723671721097,0.20793036,58972.0,58971.0,1.0399696]
[1723671724603,0.20793036,58972.0,58971.0,0.62850545]
[1723671724794,0.20793036,58972.0,58971.0,1.03996389]
[1723671725692,0.20793036,58972.0,58971.0,0.91579181]
[1723671725887,0.20793036,58972.0,58971.0,1.03996966]
[1723671726395,0.20793036,58972.0,58971.0,1.03996983]
[1723671727504,0.40980336,58972.0,58971.0,0.14353337]
[1723671727895,0.40980336,58972.0,58971.0,0.22829161]
[1723671728497,0.40980336,58972.0,58971.0,0.11075824]
[1723671729502,0.40980336,58972.0,58971.0,0.026]
[1723671729708,0.40980336,58972.0,58971.0,0.11075824]
[1723671730096,0.40980336,58972.0,58971.0,0.026]
[1723671732204,0.40980336,58972.0,58966.0,0.10196243]
[1723671732205,0.084779,58968.0,58966.0,0.00025422]
[1723671732399,0.28058,58967.0,58966.0,0.00025422]
[1723671732601,0.39848805,58967.0,58966.0,0.00025422]
[1723671733506,0.39848805,58967.0,58966.0,0.02825422]
[1723671733900,0.39848805,58967.0,58966.0,0.01425422]
[1723671734100,0.39948805,58967.0,58966.0,0.02825422]
[1723671735211,0.45001044,58967.0,58966.0,0.02825422]
[1723671735710,0.39948805,58967.0,58966.0,0.02825422]
[1723671736207,0.39948805,58967.0,58966.0,0.00025422]
[1723671743314,0.38948805,58967.0,58966.0,0.00025422]
[1723671746021,0.19368805,58967.0,58966.0,0.00025422]
[1723671746205,0.19368805,58967.0,58966.0,0.15025422]
[1723671746407,0.19368805,58967.0,58966.0,0.35365719]
[1723671746611,0.19368805,58967.0,58966.0,0.42765719]
[1723671746807,0.19368805,58967.0,58966.0,0.34289895]
[1723671747206,0.19368805,58967.0,58966.0,0.42768095]
[1723671747707,0.19268805,58967.0,58966.0,0.42768095]
[1723671747917,0.19268805,58967.0,58966.0,0.43468095]
[1723671747918,0.19368805,58967.0,58966.0,0.43468095]
[1723671749120,0.19468805,58967.0,58966.0,0.43968095]
[1723671750118,0.19468805,58967.0,58966.0,0.44068095]
[1723671750911,0.19468805,58967.0,58966.0,0.43768095]
[1723671750912,0.19368805,58967.0,58966.0,0.43768095]
[1723671751407,0.19468805,58967.0,58966.0,0.43965022]
[1723671752417,0.19368805,58967.0,58966.0,0.43465022]
[1723671752618,0.19468805,58967.0,58966.0,0.44065022]
[1723671753016,0.19468805,58967.0,58966.0,0.80145022]
[1723671753213,0.19368805,58967.0,58966.0,0.79545022]
[1723671753423,0.19468805,58967.0,58966.0,0.80045022]
[1723671753822,0.10990805,58967.0,58966.0,0.80045022]
[1723671754027,0.10890805,58967.0,58966.0,0.79845022]
[1723671755919,0.10890805,58967.0,58966.0,0.79839693]
[1723671756819,0.10890805,58967.0,58966.0,0.67983622]
[1723671757217,0.10890805,58967.0,58966.0,0.79841238]
[1723671757626,0.10890805,58967.0,58966.0,0.67983622]
[1723671757926,0.10890805,58967.0,58966.0,0.79841185]
[1723671758125,0.10890805,58967.0,58966.0,0.67983622]
[1723671759214,0.10890805,58967.0,58966.0,0.79841455]
[1723671760027,0.10890805,58967.0,58966.0,0.91551455]
[1723671760218,0.10890805,58967.0,58966.0,0.43613622]
[1723671760519,0.10890805,58967.0,58966.0,0.79693622]
[1723671760921,0.10890805,58967.0,58966.0,0.91551463]
[1723671761724,0.10890805,58967.0,58966.0,0.79693622]
[1723671766729,0.10890805,58967.0,58966.0,0.91553905]
[1723671767630,0.10890805,58967.0,58966.0,0.84153905]
[1723671768825,0.10890805,58967.0,58966.0,0.72293622]
[1723671769019,0.10890805,58967.0,58966.0,0.87064404]
[1723671770229,0.10890805,58967.0,58966.0,0.72293622]
[1723671770532,0.10890805,58967.0,58966.0,0.87064257]
[1723671771826,0.10890805,58967.0,58966.0,1.11395797]
[1723671774524,0.10890805,58967.0,58966.0,1.113866]
[1723671777939,0.10890805,58967.0,58966.0,1.11386748]
[1723671778841,0.11890805,58967.0,58966.0,1.11386748]
[1723671781547,0.11890805,58967.0,58966.0,1.11386331]
[1723671782337,0.11890805,58967.0,58966.0,1.11386508]
[1723671782543,0.11890805,58967.0,58966.0,1.62262508]
[1723671782752,0.11890805,58967.0,58966.0,1.62262507]
[1723671785238,0.11890805,58967.0,58966.0,1.98342507]
[1723671785438,0.11890805,58967.0,58966.0,2.2471864]
[1723671786245,0.11890805,58967.0,58966.0,1.7384264]
[1723671786948,0.00890805,58967.0,58966.0,1.73847377]
[1723671787352,0.00890805,58967.0,58966.0,1.73847375]
[1723671788752,0.00890805,58967.0,58966.0,1.59323]
[1723671788945,0.00890805,58967.0,58966.0,1.85699133]
[1723671790147,0.00890805,58967.0,58966.0,1.73847375]
[1723671791554,0.00890805,58967.0,58966.0,1.86507919]
[1723671791847,0.00890805,58967.0,58966.0,1.86524482]
[1723671792246,0.00890805,58967.0,58966.0,1.14364482]
[1723671792458,0.00890805,58967.0,58966.0,1.86524482]
[1723671796460,0.00890805,58967.0,58966.0,1.86524457]
[1723671800261,0.00890805,58967.0,58966.0,1.32717171]
[1723671800556,0.00890805,58967.0,58966.0,1.86524357]
[1723671801154,0.00890805,58967.0,58966.0,1.86528334]
[1723671801347,0.00890805,58967.0,58966.0,1.98380092]
[1723671801660,0.09405495,58972.0,58971.0,0.084774]
[1723671801847,0.22405495,58972.0,58971.0,1.25051598]
[1723671803756,0.22505495,58972.0,58971.0,1.25051598]
[1723671804562,0.22505495,58972.0,58971.0,1.10280998]
[1723671804754,0.22505495,58972.0,58971.0,1.25051598]
[1723671807756,0.22505495,58972.0,58971.0,0.98675526]
[1723671807963,0.22505495,58972.0,58971.0,1.10280997]
[1723671808163,0.22505495,58972.0,58971.0,0.98675526]
[1723671808367,0.22505495,58972.0,58971.0,0.83904926]
[1723671809163,0.22505495,58972.0,58971.0,0.98675526]
[1723671809663,0.22505495,58972.0,58971.0,0.83904926]
[1723671810159,0.22505495,58972.0,58971.0,1.10280998]
[1723671810363,0.22505495,58972.0,58971.0,1.25051598]
[1723671810764,0.22505495,58972.0,58971.0,1.10280998]
[1723671811062,0.22505495,58972.0,58971.0,0.98675526]
[1723671811463,0.22505495,58972.0,58971.0,0.9867548]
[1723671813273,0.22505495,58972.0,58971.0,1.2505147]
[1723671814767,0.22505495,58972.0,58971.0,1.25051469]
[1723671815068,0.22505495,58972.0,58971.0,0.83904926]
[1723671815266,0.22505495,58972.0,58971.0,1.25051469]
[1723671818469,0.22505495,58972.0,58971.0,0.9867548]
[1723671818673,0.22505495,58972.0,58971.0,1.10280915]
[1723671818876,0.22505495,58972.0,58971.0,1.2505147]
[1723671822373,0.22505495,58972.0,58971.0,1.25050877]
[1723671823977,0.22505495,58972.0,58971.0,1.25038503]
[1723671824168,0.14028195,58972.0,58971.0,1.25038503]
[1723671825763,0.14028195,58972.0,58971.0,1.09003123]
[1723671825968,0.14028195,58972.0,58971.0,0.86169544]
[1723671826165,0.14028195,58972.0,58971.0,0.86169534]
[1723671828369,0.22505495,58972.0,58971.0,0.77692134]
[1723671828676,0.27556982,58972.0,58971.0,0.77692134]
[1723671828982,0.34215495,58972.0,58971.0,0.77692134]
[1723671829168,0.34215495,58972.0,58971.0,0.77790299]
[1723671829375,0.39272255,58972.0,58971.0,0.77790299]
[1723671829680,0.39272255,58972.0,58971.0,0.63019968]
[1723671829880,0.39272255,58972.0,58971.0,0.92563778]
[1723671830077,0.39272255,58972.0,58971.0,0.77791873]
[1723671830277,0.39272255,58972.0,58971.0,0.92563778]
[1723671830477,0.39272255,58972.0,58971.0,0.77791873]
[1723671830478,0.34215495,58972.0,58971.0,0.77791873]
[1723671830678,0.34215495,58972.0,58971.0,0.26711873]
[1723671830878,0.34215495,58972.0,58971.0,0.11939968]
[1723671831083,0.084774,58971.0,58970.0,0.08477304]
[1723671831289,0.301874,58971.0,58970.0,0.08477304]
[1723671832183,0.084776,58970.0,58969.0,0.16955004]
[1723671832382,0.204776,58970.0,58969.0,0.28940096]
[1723671833175,0.204776,58970.0,58969.0,0.29140096]
[1723671833380,0.204776,58970.0,58969.0,0.29340096]
[1723671833688,0.204776,58970.0,58969.0,0.088777]
[1723671834183,0.713496,58970.0,58969.0,0.088777]
[1723671834377,0.204776,58970.0,58969.0,0.004]
[1723671834684,0.25535152,58970.0,58969.0,0.004]
[1723671834884,0.204776,58970.0,58969.0,0.004]
[1723671836287,0.204776,58970.0,58969.0,0.003]
[1723671836495,0.204776,58970.0,58969.0,0.002]
[1723671837280,0.204776,58970.0,58969.0,0.142]
[1723671837780,0.204776,58970.0,58969.0,0.226777]
[1723671840289,0.204776,58970.0,58969.0,0.142]
[1723671840586,0.204776,58970.0,58969.0,0.172]
[1723671840997,0.12,58970.0,58969.0,0.256777]
[1723671841696,0.12,58970.0,58969.0,0.34155004]
[1723671841881,0.12,58970.0,58969.0,0.256777]
[1723671843386,0.12,58970.0,58969.0,0.246777]
[1723671850390,0.084776,58971.0,58969.0,0.246777]
[1723671850697,0.184776,58971.0,58969.0,0.246777]
[1723671851084,0.084776,58970.0,58969.0,0.246777]
[1723671851386,0.184776,58970.0,58969.0,0.246777]
[1723671858304,0.184776,58970.0,58969.0,0.45106143]
[1723671859297,0.23535152,58970.0,58969.0,0.45105825]
[1723671861599,0.23535152,58970.0,58969.0,0.36628839]
[1723671863000,0.184776,58970.0,58969.0,0.36628839]
[1723671865603,0.35245152,58970.0,58969.0,0.45105953]
[1723671866704,0.301876,58970.0,58969.0,0.45105953]
[1723671867106,0.301876,58970.0,58969.0,0.46105953]
[1723671868611,0.35245152,58970.0,58969.0,0.46105953]
[1723671869011,0.35245152,58970.0,58969.0,0.46130825]
[1723671871115,0.23535152,58970.0,58969.0,0.46130825]
[1723671871315,0.301876,58970.0,58969.0,0.46130825]
[1723671871517,0.35245152,58970.0,58969.0,0.46130825]
[1723671872513,1.26117152,58970.0,58969.0,0.3428158]
[1723671872820,0.169554,58969.0,58968.0,0.08477869]
[1723671873124,0.2902725,58969.0,58968.0,0.34457053]
[1723671873420,0.2902725,58969.0,58968.0,0.34471191]
[1723671873918,0.2902725,58969.0,58968.0,0.34671191]
[1723671875011,0.2902725,58969.0,58968.0,0.26293322]
[1723671875012,0.34083799,58969.0,58968.0,0.26293322]
[1723671879024,0.34082742,58969.0,58968.0,0.41065531]
[1723671879229,0.2902725,58969.0,58968.0,0.41065531]
[1723671880326,0.2902725,58969.0,58968.0,0.26293322]
[1723671882328,0.1207185,58969.0,58968.0,0.38003322]
[1723671882629,0.00928195,58972.0,58971.0,0.084774]
[1723671882821,0.00015345,58976.0,58971.0,1.35809731]
[1723671883132,0.12015345,58976.0,58975.0,0.1171]
[1723671883317,0.12015345,58976.0,58975.0,0.55355545]
[1723671883517,0.12015345,58976.0,58975.0,0.65520051]
[1723671883835,0.12015345,58976.0,58975.0,0.28873687]
[1723671884222,0.13007728,58976.0,58975.0,0.28977591]
[1723671884730,0.13207728,58976.0,58975.0,0.28977591]
[1723671885720,0.14307728,58976.0,58975.0,0.29177591]
[1723671886629,0.14307728,58976.0,58975.0,0.37642392]
[1723671887226,0.14307728,58976.0,58975.0,0.37631506]
[1723671888531,0.14307728,58976.0,58975.0,0.25664801]
[1723671888724,0.22784428,58976.0,58975.0,0.25664801]
[1723671888929,0.22784428,58976.0,58975.0,0.002]
[1723671889129,0.30654428,58976.0,58975.0,0.002]
[1723671892935,0.30654428,58976.0,58975.0,0.162]
[1723671893434,0.22784428,58976.0,58975.0,0.162]
[1723671897532,0.30704428,58976.0,58975.0,0.162]
[1723671899025,0.22784428,58976.0,58975.0,0.162]
[1723671900434,0.13315345,58976.0,58975.0,0.246769]
[1723671900640,0.13315345,58976.0,58975.0,1.229949]
[1723671900935,0.13315345,58976.0,58975.0,1.3495257]
[1723671902038,0.13315345,58976.0,58975.0,0.4408457]
[1723671903533,0.13315345,58976.0,58975.0,0.54236402]
[1723671903836,0.01315345,58976.0,58975.0,0.54236402]
[1723671904533,0.01315345,58976.0,58975.0,0.54172487]
[1723671905228,0.01315345,58976.0,58975.0,1.34888655]
[1723671905722,0.01315345,58976.0,58975.0,1.47420798]
[1723671906235,0.01315345,58976.0,58975.0,1.34888655]
[1723671907640,0.01315345,58976.0,58975.0,1.34878926]
[1723671909239,0.01315345,58976.0,58975.0,1.3487939]
[1723671909533,0.01315345,58976.0,58975.0,0.9487939]
[1723671909738,0.01315345,58976.0,58975.0,1.3487939]
[1723671910240,0.01315345,58976.0,58975.0,0.9487939]
[1723671910742,0.01315345,58976.0,58975.0,1.3487939]
[1723671911240,0.01315345,58976.0,58975.0,1.47407052]
[1723671911438,0.01315345,58976.0,58975.0,2.19567052]
[1723671913944,0.01315345,58976.0,58975.0,2.1957589]
[1723671915350,0.01315345,58976.0,58975.0,1.7957589]
[1723671916251,0.01315345,58976.0,58975.0,1.79574964]
[1723671917341,0.01315345,58976.0,58975.0,1.72124964]
[1723671917750,0.01315345,58976.0,58975.0,1.21256964]
[1723671918435,0.01315345,58976.0,58975.0,1.21237597]
[1723671920047,0.01315345,58976.0,58975.0,1.36006285]
[1723671923248,0.01315345,58976.0,58975.0,1.36012097]
[1723671924647,0.15916,58982.0,58975.0,1.27535197]
[1723671924848,0.26916,58982.0,58981.0,0.4779]
[1723671925047,0.26916,58982.0,58981.0,0.74672188]
[1723671926058,0.28216,58982.0,58981.0,0.74672188]
[1723671926249,0.28216,58982.0,58981.0,0.83148188]
[1723671926443,0.28916,58982.0,58981.0,0.83248188]
[1723671926648,0.29516,58982.0,58981.0,0.83348188]
[1723671927755,0.29516,58982.0,58981.0,0.93526815]
[1723671928549,0.29516,58982.0,58981.0,0.83366494]
[1723671932353,0.29516,58982.0,58981.0,0.83374125]
[1723671941564,0.29516,58982.0,58981.0,0.71466]
[1723671941761,0.29516,58982.0,58981.0,0.8339513]
[1723671942760,0.29516,58982.0,58981.0,0.98163819]
[1723671942960,0.29516,58982.0,58981.0,0.8339513]
[1723671943162,0.29516,58982.0,58981.0,0.98163819]
[1723671944370,0.29516,58982.0,58981.0,0.98161598]
[1723671944571,0.29516,58982.0,58981.0,0.86234689]
[1723671944973,0.29516,58982.0,58981.0,0.98161317]
[1723671945672,0.29516,58982.0,58981.0,0.86234689]
[1723671950473,0.29516,58982.0,58981.0,0.86234664]
[1723671951682,0.29516,58982.0,58981.0,0.98160961]
[1723671952680,0.29516,58982.0,58981.0,1.24533577]
[1723671952977,0.29516,58982.0,58981.0,0.98160961]
[1723671953182,0.29516,58982.0,58981.0,1.24533577]
[1723671954179,0.29516,58982.0,58981.0,1.24533483]
[1723671954381,0.29516,58982.0,58981.0,1.12607186]
[1723671955680,0.29516,58982.0,58981.0,0.86234659]
[1723671955883,0.29516,58982.0,58981.0,1.12607265]
[1723671956482,0.29516,58982.0,58981.0,1.2453321]
[1723671956877,0.22076,58982.0,58981.0,1.2453321]
[1723671957077,0.22076,58982.0,58981.0,0.98160604]
[1723671957584,0.22076,58982.0,58981.0,1.24533158]
[1723671957779,0.22076,58982.0,58981.0,0.98160555]
[1723671957973,0.22076,58982.0,58981.0,0.98160554]
[1723671959384,0.22076,58982.0,58981.0,1.37099187]
[1723671959684,0.22076,58982.0,58981.0,1.37100489]
[1723671961075,0.22076,58982.0,58981.0,0.95959228]
[1723671961378,0.22076,58982.0,58981.0,1.2233114]
[1723671961579,0.22076,58982.0,58981.0,1.37099411]
[1723671964385,0.22076,58982.0,58981.0,1.37099378]
[1723671965479,0.22076,58982.0,58981.0,1.37049423]
[1723671967980,0.22076,58982.0,58981.0,1.3704942]
[1723671970177,0.22076,58982.0,58981.0,1.37051671]
[1723671970390,0.22076,58982.0,58981.0,1.10679782]
[1723671970687,0.22076,58982.0,58981.0,1.3705131]
[1723671971674,0.22076,58982.0,58981.0,1.22283052]
[1723671971882,0.22076,58982.0,58981.0,1.37051282]
[1723671972084,0.22076,58982.0,58981.0,1.63423436]
[1723671972293,0.22076,58982.0,58981.0,0.95911524]
[1723671972590,0.22076,58982.0,58981.0,1.37051596]
[1723671973776,0.22076,58982.0,58981.0,1.37051594]
[1723671974191,0.22076,58982.0,58981.0,0.95911524]
[1723671974391,0.22076,58982.0,58981.0,1.37051594]
[1723671974794,0.22076,58982.0,58981.0,1.37054144]
[1723671976186,0.22076,58982.0,58981.0,1.25344144]
[1723671976392,0.22076,58982.0,58981.0,1.37054144]
[1723671978494,0.22076,58982.0,58981.0,0.95914074]
[1723671978792,0.22076,58982.0,58981.0,1.37054216]
[1723671979399,0.22076,58982.0,58981.0,1.37052256]
[1723671979595,0.22076,58982.0,58981.0,1.22284]
[1723671979898,0.22076,58982.0,58981.0,1.37052186]
[1723671983298,0.22076,58982.0,58981.0,0.98136224]
[1723671983698,0.22076,58982.0,58981.0,0.98136216]
[1723671984092,0.22076,58982.0,58981.0,1.24508053]
[1723671985101,0.22076,58982.0,58981.0,0.98136216]
[1723671986993,0.22076,58982.0,58981.0,0.98136221]
[1723671987198,0.22076,58982.0,58981.0,1.37052325]
[1723671987403,0.136,58982.0,58981.0,1.25342325]
[1723671987603,0.136,58982.0,58981.0,1.37052325]
[1723671987900,0.136,58982.0,58981.0,1.00972325]
[1723671988103,0.136,58982.0,58981.0,1.37052325]
[1723671988690,0.136,58982.0,58981.0,1.24494198]
[1723671990002,0.136,58982.0,58981.0,1.37027081]
[1723671990707,0.136,58982.0,58981.0,1.37026995]
[1723671991799,0.136,58982.0,58981.0,1.37026875]
[1723671992107,0.136,58982.0,58981.0,0.84177049]
[1723671992309,0.136,58982.0,58981.0,1.10655257]
[1723671992506,0.136,58982.0,58981.0,0.95887049]
[1723671992700,0.136,58982.0,58981.0,1.22258794]
[1723671993311,0.136,58982.0,58981.0,1.63363358]
[1723671994796,0.136,58982.0,58981.0,1.51653358]
[1723671995009,0.136,58982.0,58981.0,1.63363358]
[1723671995507,0.136,58982.0,58981.0,1.2528162]
[1723671995703,0.136,58982.0,58981.0,1.48595223]
[1723671995900,0.136,58982.0,58981.0,1.63363471]
[1723672002802,0.136,58982.0,58981.0,1.36991591]
[1723672003008,0.136,58982.0,58981.0,1.63363362]
[1723672003215,0.136,58982.0,58981.0,1.36991617]
[1723672005915,0.136,58982.0,58981.0,1.25281617]
[1723672006116,0.136,58982.0,58981.0,1.36991617]
[1723672006707,0.136,58982.0,58981.0,0.95851654]
[1723672007011,0.136,58982.0,58981.0,1.36991543]
[1723672007317,0.136,58982.0,58981.0,1.36970259]
[1723672008020,0.136,58982.0,58981.0,1.49628183]
[1723672008217,0.136,58982.0,58981.0,1.49533491]
[1723672008910,0.136,58982.0,58981.0,1.36875567]
[1723672010023,0.136,58982.0,58981.0,0.95736556]
[1723672010317,0.136,58982.0,58981.0,1.36875202]
[1723672013006,0.136,58982.0,58981.0,1.22107483]
[1723672013217,0.136,58982.0,58981.0,1.49532654]
[1723672013720,0.136,58982.0,58981.0,1.36874701]
[1723672016113,0.06695148,58982.0,58981.0,1.36874701]
[1723672017116,0.026,58982.0,58981.0,1.49532641]
[1723672017307,0.136,58982.0,58981.0,1.10503774]
[1723672017513,0.136,58982.0,58981.0,1.49532349]
[1723672018219,0.026,58982.0,58981.0,1.37822349]
[1723672018423,0.026,58982.0,58981.0,1.49532349]
[1723672019315,0.026,58982.0,58981.0,1.49531809]
[1723672019520,0.026,58982.0,58981.0,1.61400722]
[1723672019822,0.00986768,58985.0,58984.0,0.084756]
[1723672020021,0.0712,58986.0,58985.0,0.084754]
[1723672020214,0.2012,58986.0,58985.0,1.37621209]
[1723672020723,0.2012,58986.0,58985.0,1.10929361]
[1723672021017,0.2012,58986.0,58985.0,1.37297054]
[1723672021614,0.2012,58986.0,58985.0,1.24640562]
[1723672022126,0.2152,58986.0,58985.0,1.37396992]
[1723672022515,0.2152,58986.0,58985.0,1.24740562]
[1723672022713,0.2152,58986.0,58985.0,1.24840562]
[1723672023115,0.0852,58986.0,58985.0,1.25805357]
[1723672023726,0.014,58986.0,58985.0,0.84670446]
[1723672023917,0.014,58986.0,58985.0,1.45330345]
[1723672024121,0.014,58986.0,58985.0,1.50170345]
[1723672024316,0.014,58986.0,58985.0,1.49146309]
[1723672025327,0.014,58986.0,58985.0,1.36489948]
[1723672025621,0.014,58986.0,58985.0,1.49146133]
[1723672025829,0.014,58986.0,58985.0,1.49146071]
[1723672026030,0.014,58986.0,58985.0,1.36489948]
[1723672027423,0.014,58986.0,58985.0,0.9535641]
[1723672027729,0.014,58986.0,58985.0,1.36490006]
[1723672028127,0.014,58986.0,58985.0,1.36489734]
[1723672029025,0.014,58986.0,58985.0,1.36458578]
[1723672031426,0.014,58986.0,58985.0,0.95325254]
[1723672031622,0.014,58986.0,58985.0,1.36458178]
[1723672031821,0.014,58986.0,58985.0,1.24748178]
[1723672032021,0.014,58986.0,58985.0,1.36458178]
[1723672032327,0.014,58986.0,58985.0,1.1009089]
[1723672032525,0.014,58986.0,58985.0,1.36458098]
[1723672032724,0.014,58986.0,58985.0,1.62825338]
[1723672032923,0.014,58986.0,58985.0,1.3645813]
[1723672033528,0.014,58986.0,58985.0,1.36448235]
[1723672035131,0.014,58986.0,58985.0,1.21682587]
[1723672035337,0.014,58986.0,58985.0,1.36447592]
[1723672036832,0.014,58986.0,58985.0,1.44922992]
[1723672037326,0.014,58986.0,58985.0,2.44258392]
[1723672037528,0.014,58986.0,58985.0,2.56914095]
[1723672037733,0.014,58986.0,58985.0,2.82021093]
[1723672038121,0.014,58986.0,58985.0,2.81910104]
[1723672038328,0.014,58986.0,58985.0,2.81810104]
[1723672038523,0.00025422,58987.0,58986.0,0.169506]
[1723672038728,0.00025422,58987.0,58986.0,1.82057417]
[1723672039036,0.00025422,58987.0,58986.0,2.22054618]